Cogmind - Beta 13 @@@ ROGUE MODE // 2024.02.26 @ 22:34:42 Player: biznut Result: Destroyed by G-47 Trooper with Particle Gun Performance ------------- Evolutions (1) 500 Regions Visited (3) 600 Robots Destroyed (55) 275 Value Destroyed (1543) 1543 Prototype IDs (2) 40 Alien Tech Used (0) 0 Bonus (17) 17 TOTAL SCORE: 2975 Bonus ------- High Alert Combat Kills 17 Cogmind --------- Core Integrity 0/400 Matter 270/300 Energy 76/265 System Corruption 10% Temperature Warning (371) Movement Rolling (145) Ox3 Location -9/Storage Parts ------- > --- POWER (1) -------- Improved Ion Engine > --- PROPULSION (2) --- Compact Wheel > --- UTILITY (4) ------ Disposable Heat Sink High-capacity Storage Unit Utility Shielding > --- WEAPON (2) ------- Heavy Particle Cannon Heavy Particle Cannon > --- INVENTORY (20) --- Improved Ion Engine Improved Heat Sink Large Storage Unit Compact Battery (200) Compact Battery (200) Compact Battery (200) Structural Scanner Visual Processing Unit Improved Signal Interpreter Terrain Scan Processor Salvage Targeting Computer Improved Targeting Computer ECM Suite Field Recycling Unit (0) Heavy Particle Cannon Heavy Particle Cannon Mini Grenade Launcher Peak State ------------ > --- POWER ------------ Light Nuclear Core > --- PROPULSION ------- Wheel Compact Wheel > --- UTILITY ---------- High-capacity Storage Unit Power Shielding Utility Shielding Hardened Light Armor Plating > --- WEAPON ----------- Heavy Particle Cannon Mini Grenade Launcher > --- INVENTORY -------- Ion Engine Light Nuclear Core Improved Heat Sink Medium Storage Unit Medium Storage Unit Compact Battery Compact Battery Compact Battery Compact Battery Structural Scanner Visual Processing Unit Improved Signal Interpreter Improved Signal Interpreter Field Recycling Unit Heavy Particle Cannon Heavy Particle Cannon Heavy Particle Cannon [Rating: 19] Favorites ----------- Power Light Nuclear Core Engine Ion Engine Power Core Light Nuclear Core Propulsion Compact Wheel Leg Aluminum Leg Wheel Compact Wheel Utility Power Shielding Device Heat Sink Storage High-capacity Storage Unit Protection Power Shielding Weapon Mini Grenade Launcher Energy Gun Particle Gun Energy Cannon Heavy Particle Cannon Ballistic Gun Light Assault Rifle Launcher Mini Grenade Launcher Build | -11 -10 -9 -9 ------- Run | Yrd Mat Mat Sto Slots Evolved 2 | . . 2 . Power . | . . . . Propulsion . | . . . . Utility 2 | . . 2 . Weapon . | . . . . Parts Attached 55 | 10 17 24 4 Power 7 | 1 3 2 1 Engine 3 | 1 1 . 1 Core 4 | . 2 2 . Reactor . | . . . . Propulsion 19 | 5 5 8 1 Treads . | . . . . Leg 2 | 2 . . . Wheel 17 | 3 5 8 1 Hover . | . . . . Flight . | . . . . Utility 11 | 1 5 4 1 Device 3 | . 2 . 1 Storage 4 | 1 2 1 . Processor . | . . . . Hackware . | . . . . Protection 4 | . 1 3 . Artifact . | . . . . Weapon 18 | 3 4 10 1 Energy Gun 9 | 1 1 7 . Energy Cannon 3 | . . 2 1 Ballistic Gun 3 | 2 1 . . Ballistic Cannon . | . . . . Launcher 3 | . 2 1 . Special Weapon . | . . . . Impact Weapon . | . . . . Slashing Weapon . | . . . . Piercing Weapon . | . . . . Special Melee Weapon . | . . . . Unidentified Prototypes . | . . . . Parts Lost 16 | . 3 9 4 Power 4 | . 1 2 1 Propulsion 5 | . . 4 1 Utility 3 | . . 1 2 Weapon 4 | . 2 2 . Highest Loss Streak 5 | . 2 5 4 To Critical Strikes . | . . . . Average Slot Usage (%) 97 | . 96 98 98 Core 10 | . 10 11 11 Wheel 23 | . 28 20 21 Storage 11 | . 14 11 11 Protection 25 | . 8 33 32 Energy Gun 7 | . 11 6 . Energy Cannon 5 | . . 7 11 Ballistic Gun 2 | . 7 . . Launcher 8 | . 8 8 10 Naked Turns . | . . . . Heaviest Build 64 | 12 22 59 64 Greatest Support 32 | 20 32 32 26 Greatest Overweight (x) 6 | 1 . 3 6 Average Overweight (x) . | . . 1 2 Largest Inventory Capacity 20 | 8 10 20 20 Average Capacity 14 | 7 9 16 20 Most Carried 20 | 6 10 20 20 Average Carried 12 | 3 8 14 19 Final Capacity 20 | 8 10 20 20 Final Carried 20 | 6 10 20 17 Class Distribution -------------------- 95% | Mutant 4% | Scavenger-Mutant Dominant Class ---------------- Mutant | -10/Materials Mutant | -9/Materials Mutant | -9/Storage Resources | -11 -10 -9 -9 ----------- Run | Yrd Mat Mat Sto Matter Collected 1166 | 205 490 396 75 Remotely . | . . . . Salvage Created 1686 | . 478 1069 139 Parts 105 | . 26 69 10 Haulers Intercepted . | . . . . Recyclers Shooed 1 | . 1 . . Parts Field Recycled . | . . . . Retrieved Matter . | . . . . Parts Self-Destructed . | . . . . Prevented . | . . . . Kills | -11 -10 -9 -9 ------- Run | Yrd Mat Mat Sto Combat Hostiles Destroyed 37 | . 7 27 3 Guns 14 | . 6 8 . Cannons 11 | . . 9 2 AOE 12 | . 1 10 1 Classes Destroyed 9 | . 4 5 . Worker 4 | . 1 3 . Builder 4 | . . 2 2 Tunneler 1 | . . 1 . Recycler 3 | . 2 1 . Watcher 6 | . 3 3 . Swarmer 3 | . . 3 . Grunt 26 | . 7 19 . Brawler 2 | . . 2 . Sentry 6 | . . 3 3 Best Kill Streak 4 | . 3 4 3 Combat Bots Only 3 | . 3 3 2 Max Kills in Single Turn 4 | . 1 4 1 Gunslinging . | . . . . Exploded 2 | . 1 2 1 Melee . | . . . . Uniques/NPCs Destroyed . | . . . . Combat | -11 -10 -9 -9 -------- Run | Yrd Mat Mat Sto Hostile Shots Fired 208 | . 63 114 31 Missed 60 | . 18 33 9 Damage Taken 2036 | . 630 1060 346 Core 537 | . 127 256 154 Absorbed by Shields . | . . . . Redirected to Shielding 121 | . 3 105 13 Regen/Repaired (Parts) 36 | . 36 . . Core Remaining (%) 74 | 100 49 . . Volleys Fired 130 | . 59 63 8 Largest 2 | . 2 2 2 Hottest 150 | . 95 130 150 Shots Fired 228 | . 98 113 17 Gun 156 | . 84 72 . Cannon 36 | . . 24 12 Launcher 36 | . 14 17 5 Special . | . . . . Kinetic 48 | . 48 . . Thermal 119 | . 28 79 12 Explosive 36 | . 14 17 5 Electromagnetic 25 | . 8 17 . Robot Hit Streak 9 | . 7 7 9 Robot Miss Streak 5 | . 5 5 1 Penetration Max . | . . . . Secondary Targets 1 | . 1 . . Max Gunslinging Chain 1 | . 1 . . Shots Hit Robots 137 | . 58 66 13 Core Hits 82 | . 23 53 6 Critical Kills . | . . . . Critical Parts Destroyed . | . . . . Critical Strikes 4 | . . 4 . Burn 4 | . . 4 . Melee Attacks . | . . . . Impact . | . . . . Slashing . | . . . . Piercing . | . . . . Sneak Attacks . | . . . . Combat Hostiles . | . . . . Follow-up Attacks . | . . . . Damage Inflicted 3465 | . 962 2094 409 Guns 1314 | . 697 617 . Cannons 675 | . . 425 250 Explosions 1476 | . 265 1052 159 Melee . | . . . . Ramming . | . . . . Kinetic 346 | . 346 . . Thermal 1392 | . 268 874 250 Explosive 1476 | . 265 1052 159 Electromagnetic 251 | . 83 168 . Impact . | . . . . Slashing . | . . . . Piercing . | . . . . Highest Corruption 10 | . 1 10 10 Average Corruption 4 | . 1 8 10 Corruption Purged . | . . . . Corruption Blocked . | . . . . Effects 29 | . 10 11 8 Message Errors 7 | . 4 2 1 Matter Fused 6 | . 3 2 1 Heat Flow Errors 5 | . 1 3 1 Energy Discharges 1 | . . 1 . Parts Rejected 1 | . . . 1 Parts Fused 1 | . . 1 . Data Loss (minor) 3 | . 2 . 1 Misfires 3 | . . 2 1 Alerts 1 | . . . 1 Misdirections 1 | . . . 1 Overload Shots . | . . . . Overflow Damage 42 | . 13 29 . Projectiles . | . . . . Explosions 42 | . 13 29 . Melee . | . . . . Knockbacks . | . . . . Impact . | . . . . Kinetic . | . . . . Secondary . | . . . . Self-Inflicted Damage 202 | . 39 125 38 Shots 7 | . 1 5 1 Rammed . | . . . . Targets Rammed . | . . . . Kicked . | . . . . Crushed . | . . . . Highest Temperature 445 | . 264 366 445 Average Temperature 98 | . 57 110 155 Received Heat Transfer 984 | . 375 438 171 Effects 3 | . . 3 . Energy Bleed 1 | . . 1 . Interference 2 | . . 2 . Siege Activations . | . . . . Robots Corrupted . | . . . . Combat Hostiles . | . . . . Parts Fried . | . . . . Impact Corruptions . | . . . . Robots Melted . | . . . . Combat Hostiles . | . . . . Parts Melted 3 | . . 3 . Heat Transferred 2888 | . 629 1889 370 Parts Sabotaged . | . . . . Parts Stolen . | . . . . Parts Stripped . | . . . . Power Chain Reactions . | . . . . Alert | -11 -10 -9 -9 ------- Run | Yrd Mat Mat Sto Peak Influence 468 | . 258 468 367 Initial 155 | . . 74 155 Average 221 | . 144 266 242 Maximum Alert Level 2 | . 1 2 1 Low Security (%) 51 | 100 89 33 24 Level 1 43 | . 10 59 75 Level 2 4 | . . 7 . Level 3 . | . . . . Level 4 . | . . . . Level 5 . | . . . . High Security . | . . . . Max Security . | . . . . Squads Dispatched 6 | . 1 5 . Investigation 5 | . 1 4 . Extermination . | . . . . Reinforcement 1 | . . 1 . Assault . | . . . . Garrison . | . . . . Intercept . | . . . . Searches Triggered . | . . . . Construction Impeded . | . . . . Haulers Reinforced . | . . . . Active Scanning Responses . | . . . . Cargo Convoy Interrupts . | . . . . Stealth | -11 -10 -9 -9 --------- Run | Yrd Mat Mat Sto Distress Signals 3 | . . 2 1 Communications Jammed . | . . . . Distress Signals . | . . . . Times Spotted 69 | . 18 43 8 Peak Tracking Total 10 | . 4 4 10 Tactical Retreats 7 | . 4 3 . Traps | -11 -10 -9 -9 ------- Run | Yrd Mat Mat Sto Traps Triggered 12 | . 1 9 2 Indirectly . | . . . . Trap Hack Attempts . | . . . . Triggered . | . . . . Disarmed . | . . . . Reprogrammed . | . . . . Reused . | . . . . Traps Extracted . | . . . . Installed . | . . . . Triggered . | . . . . Machines | -11 -10 -9 -9 ---------- Run | Yrd Mat Mat Sto Machines Disabled 9 | . 3 3 3 Max in Single Turn 2 | . 1 1 2 Machines Repaired . | . . . . Machines Dismantled . | . . . . Machines Sabotaged . | . . . . Overloaded Fab Kills . | . . . . Hacking | -11 -10 -9 -9 --------- Run | Yrd Mat Mat Sto Machines Accessed 13 | . 7 5 1 Terminals 10 | . 5 4 1 Fabricators . | . . . . Repair Stations 1 | . 1 . . Recycling Units 1 | . 1 . . Scanalyzers 1 | . . 1 . Garrison Access . | . . . . Total Hacks 47 | . 27 19 1 Successful 22 | . 11 10 1 Failed 25 | . 16 9 . Catastrophic 2 | . . 2 . Database Lockouts . | . . . . Manual . | . . . . Terminals 35 | . 18 16 1 Fabricators . | . . . . Repair Stations 6 | . 6 . . Recycling Units 3 | . 3 . . Scanalyzers 3 | . . 3 . Garrison Access . | . . . . Terminal Hacks 15 | . 6 8 1 Record 3 | . . 3 . Prototype ID Bank 1 | . . 1 . Branch Access Points 1 | . . 1 . Alert Level 2 | . 1 1 . Unreport Threat 1 | . . 1 . Locate Traps 1 | . 1 . . Dispatch Records 1 | . 1 . . Investigation Status 1 | . 1 . . Hauler Manifests 2 | . 1 1 . Registered Components 1 | . 1 . . Zone Layout 1 | . . . 1 Fabricator Hacks . | . . . . Repair Station Hacks 3 | . 3 . . Scan Component 2 | . 2 . . Repair 1 | . 1 . . Recycling Unit Hacks 2 | . 2 . . Report Inventory 1 | . 1 . . Retrieve Components 1 | . 1 . . Scanalyzer 2 | . . 2 . Insert Component 1 | . . 1 . Analyze 1 | . . 1 . Garrison Access Hacks . | . . . . Unauthorized Hacks . | . . . . Terminals . | . . . . Fabricators . | . . . . Repair Stations . | . . . . Recycling Units . | . . . . Scanalyzers . | . . . . Garrison Access . | . . . . Data Cores Recovered . | . . . . Used . | . . . . Hacking Detections 12 | . 6 5 1 Full Trace Events 9 | . 4 5 . Feedback Events . | . . . . Feedback Blocked . | . . . . Robot Schematics Acquired . | . . . . Robots Built . | . . . . Authchips . | . . . . Time . | . . . . Total Robot Build Rating . | . . . . Part Schematics Acquired 1 | . . 1 . Parts Built . | . . . . Authchips . | . . . . Time . | . . . . Total Part Build Rating . | . . . . Parts Repaired 1 | . 1 . . Time 19 | . 19 . . Parts Recycled . | . . . . Recycled Matter . | . . . . Retrieved Matter . | . . . . Retrieved Components 8 | . 8 . . Parts Scanalyzed 1 | . . 1 . Part Schematics Acquired 1 | . . 1 . Parts Damaged . | . . . . Bothacking | -11 -10 -9 -9 ------------ Run | Yrd Mat Mat Sto Used RIF Installer . | . . . . Robots Hacked . | . . . . Non-combat . | . . . . Combat . | . . . . Robot Hacks Applied . | . . . . Relay Couplers Released . | . . . . Fabnet Peak Effective % . | . . . . Robots Rewired . | . . . . Allies Hacked . | . . . . Hacks Repelled . | . . . . Allies | -11 -10 -9 -9 -------- Run | Yrd Mat Mat Sto Total Allies . | . . . . Largest Group . | . . . . Highest-Rated Group . | . . . . Highest-Rated Ally . | . . . . Total Orders . | . . . . Ally Attacks . | . . . . Total Damage . | . . . . Kills . | . . . . Allies Corrupted . | . . . . Allies Melted . | . . . . Intel | -11 -10 -9 -9 ------- Run | Yrd Mat Mat Sto Robot Analysis Total . | . . . . Derelict Logs Recovered . | . . . . Drone Launches . | . . . . Drone Recoveries . | . . . . Exploration | -11 -10 -9 -9 ------------- Run | Yrd Mat Mat Sto Turns Passed 3288 | 86 1003 2027 172 Spaces Moved 2490 | 70 837 1484 99 Core 14 | 14 . . . Treads . | . . . . Legs 26 | 26 . . . Wheels 2450 | 30 837 1484 99 Hover . | . . . . Flight . | . . . . Fastest Speed 50 | 50 80 90 120 Average Speed 105 | 89 90 114 120 Slowest Speed 190 | 190 100 145 170 Overloaded Moves . | . . . . Propulsion Burnouts . | . . . . Robots Hopped . | . . . . Cave-ins Triggered . | . . . . Exploration Rate (%) 51 | 6 86 78 34 Regions Visited 3 Branch Regions 1 Pre-discovered Areas . | . . . . Known Exits Taken 1 | . . 1 . Unknown Exits Taken 2 | 1 1 . . Scrap Searched . | . . . . Spaces Dug . | . . . . Terrain Destroyed 220 | . 66 129 25 Melee . | . . . . Projectile 7 | . . 6 1 AOE 213 | . 66 123 24 Terrain Rammed . | . . . . Walls Destroyed . | . . . . Machines Disabled . | . . . . Actions | -11 -10 -9 -9 --------- Run | Yrd Mat Mat Sto Total 2925 | 89 998 1703 135 Wait 118 | . 28 82 8 Move 2487 | 69 836 1483 99 Hop . | . . . . Pick Up 74 | 10 30 34 . Fast Attach 17 | 2 5 10 . Attach 22 | 4 6 9 3 Detach 2 | . 2 . . Swap 16 | 4 6 5 1 Drop 43 | . 26 17 . Fire 130 | . 59 63 8 Melee . | . . . . Ram . | . . . . Kick . | . . . . Crush . | . . . . Escape Stasis 16 | . . . 16 Rewire . | . . . . Trap . | . . . . Miscellaneous . | . . . . Route ------- -11/Scrapyard -10/Materials (discovered 5 exits: *Mat x3 / [*Min x2]) -9/Materials (discovered 4 exits: [*Mat x2] / *Min / *Sto) -9/Storage History --------- Turn | Location | Event 9 | -11/Scrapyard | Discovered new exit (range 16) 87 | -11/Scrapyard | Entered Materials 213 | -10/Materials | Discovered new exit (range 14) 333 | -10/Materials | Build established: Mutant 387 | -10/Materials | Discovered new exit (range 16) 519 | -10/Materials | Discovered new exit (range 9) 568 | -10/Materials | Discovered new exit (range 16) 799 | -10/Materials | Repaired Lgt. Nuclear Core 897 | -10/Materials | Core integrity fell below 50% 1064 | -10/Materials | Discovered new exit (range 13) 1090 | -10/Materials | Entered another Materials area 1090 | -9/Materials | Evolved 2 slots: Utility x2 1390 | -9/Materials | Discovered new exit (range 15) 1582 | -9/Materials | Lost 5 parts (1p1n1u2w) 1759 | -9/Materials | Core integrity fell below 50% 2153 | -9/Materials | Discovered new exit (range 3) 2206 | -9/Materials | Discovered new exit (range 16) 2475 | -9/Materials | Identified exit to Mines 2475 | -9/Materials | Identified exit to Storage 2817 | -9/Materials | System corruption reached 10% 2905 | -9/Materials | Discovered new exit (range 4) 3117 | -9/Materials | Entered Storage 3164 | -9/Storage | Core integrity fell below 20% 3289 | -9/Storage | Destroyed by G-47 Trooper with Particle Gun Last Messages --------------- 03191_ U-05 Engineer lays Concrete. 03192_ U-05 Engineer builds a Wall. 03200_ Acquired 45 matter. 03205_ System corrupted: Matter fused (-9). 03206_ U-05 Engineer lays Concrete. 03218_ Connecting with Terminal... >>Layout(Zone) Retrieving Zone 3M layout... Downloaded map data. 03227_ K-01 Serf cleans the Terminal. 03248_ #A9JWBW5BP7F=VGE9IJLWW%P7R%BLS 03250_ Critical hit (Burn: +37). 03271_ System corrupted: Com. Wheel rejected. 03273_ Y-45 Defender destroyed. 03279_ Power Shielding destroyed. 03280_ Transfer Shaft disabled. 03283_ Hrd. Light Armor Plating destroyed. 03283_ Critical hit (Burn: +37). 03285_ Lgt. Nuclear Core destroyed. 03286_ Wheel destroyed. Map ----- +----------------------------------------------------+ | ?????????????????????????????????????????????????? | | ?????????????????????????????????????????????????? | | ?????????????????????????????????????????????????? | | ?????????????????????????????????????????????????? | | ?????????????????????????????????????????????????? | | ?????????????????????????????????????????????????? | | ?????????????????????????????????????????????????? | | ?????????????????????????????????????????????????? | | ?????????????????????????????????????????????????? | | ?????????????????????????????????????????????????? | | ?????????????????????????????????????????????????? | | ???????????????????????????????????????????????? ? | | ???????????????????????????##?###??????????????? # | | ??????????????????????????# * #??#####???# # | | ??????????????????????????# #??#"""#???# # | | ????????????????????####?## """ """ ####"T"##### # | | ????????????????????#"""?# """ """ ## ## | | ????????????????????#"R"??# """ """ # """ ## | | ?????????????????####" "### ## """ ## | | ?????????????????# [# ## """ # | | ?????????????????#"" # ## # | | ?????????????????#""" ]g #+###+###### """ # | | ?????????????????#""" Y #* # """ # # | | ?????????????????# g!+% # """ + # | | ?????????????????#""" gg# # # # | | ?????????????????#""" @##### ########## # | | ?????????????????#""" #???# ######### | | ?????????????????# =[ #???# | | ?????????????????######%!##???# T | | ??????????????????????###?????# """ ######## | | ??????????????????????????????# """ #???#####+## | | ??????????????????????????????# """ #???# | | ??????????????????????????????# #???# | | ?????????????????????????????? #???# | | ?????????????????????????????## """ #???# """ "" | | ??????????????????????????????# """ #???# """ "" | | ??????????????????????????????# """ #???# """ "" | | ??????????????????????????????# ##### | | ??????????????????????????????/ + | | ????????????????????????????????? ############ | | ????????????????????????????????? # | | ????????????????????????????????? # | | ????????????????????????????????? # | | ????????????????????????????????? + | | ?????????????????????????????????????????????????? | | ?????????????????????????????????????????????????? | | ?????????????????????????????????????????????????? | | ?????????????????????????????????????????????????? | | ?????????????????????????????????????????????????? | | ?????????????????????????????????????????????????? | +----------------------------------------------------+ Best States ------------- Heat Dissipation 35 Energy Generation 14 Energy Capacity 250 Matter Stores 300 Matter Capacity 300 Sight Range 16 Terrain Scan Density 10 Armor Coverage 150 Power Shielding 33 Utility Shielding 33 Weapon Shielding 33 Evasion (%) 55 Item Schematics ----------------- Lgt. Nuclear Core | -9/Materials | Scanalyzed Robot Schematics ------------------ None Fabricated ------------ Nothing Alien Tech Used ----------------- None Achievements -------------- Maybe Next Time I'll Detach My Launcher Remodeling System Compromised Challenges ------------ None Game ------ Seed ZioniteAccelerationFalx Manual? 0 Play Time 01:41:56 Cumulative 9.8 hours Start 2024.02.26 @ 20:19:18 End 2024.02.26 @ 22:34:42 Sessions 1 Manual Loads 0 Difficulty Rogue Special Mode None Game No. 5 Rogue 5 Adventurer 0 Explorer 0 Win Type - Total 0 Types 0/0/0/0/0/0/0/0/0 Lore% 1 Gallery% 4 Achievement% 5 Wizard Run 0 Options --------- Layout 2 ASCII 0 Keyboard 1 Movement Numpad Keybinds 0 Fullscreen 2 Font 32/SmallcapsGlow Map View 25x24 Zoom Use 43% Tactical HUD 1 Map Filters NONE Filters NONE Steam 1 RUN: a741c732-73b4-4f96-874b-50e747f49b30